[Event "European Women-ch 2023"]
[Site "Petrovac"]
[Date "2023.03.20"]
[Round "3.26"]
[White "Lomaia, Diana"]
[Black "Olde, Margareth"]
[Result "0-1"]
[ECO "E21"]
[WhiteElo "1950"]
[BlackElo "2234"]
[Annotator "TA"]
[PlyCount "76"]
[EventDate "2023.03.15"]
[EventType "swiss"]
[EventCountry "MNE"]
[SourceTitle "playchess.com"]
[Source "ChessBase"]
[SourceQuality "1"]
[TimeControl "40/5400+30:1800+30"]

{[%evp 11,76,3,-12,-10,0,-2,29,19,31,21,27,0,0,-1,-5,0,0,-6,-6,-94,-83,-99,-53,-127,-95,-127,-88,-93,-89,-100,-95,-93,-85,-126,-114,-159,-172,-197,-195,-273,-262,-324,-329,-396,-417,-443,-364,-541,-543,-664,-710,-677,-670,-958,-788,-751,-749,-685,-603,-831,-815,-5489,-5489,-29986,-967,-908,-744]} 1. d4 {[%emt 0:00:03]} Nf6 {[%emt 0:00:05]} 2. c4 {[%emt 0:00:06]} e6 {[%emt 0:00:05]} 3. Nc3 {[%emt 0:00:08]} Bb4 {[%emt 0:00:19]} 4. Nf3 {[%emt 0:00:26]} b6 {[%emt 0:00:38]} 5. Qb3 {[%emt 0:00:35]} c5 {[%emt 0:00:50]} 6. dxc5 {[%emt 0:00:49]} bxc5 {[%emt 0:01:22]} 7. g3 {[%emt 0:02:10] E21: Nimzo-Indian: 4 Nf3.} Nc6 {[%emt 0:03:08][%cal Bb8c6,Bc6a5,Ba5c4,Bc4d6,Bd6f5][%mdl 32]} 8. Bg2 {[%emt 0:04:00]} Bb7 {[%emt 0:10:36]} 9. O-O {[%emt 0:03:32] Threatening Na4. White has an edge.} Na5 {[%emt 0:04:46]} 10. Qc2 {[%emt 0:02:17]} Nxc4 {[%emt 0:04:31]} 11. a3 {[%emt 0:05:18]} Bxc3 {[%emt 0:01:11]} 12. Qxc3 {[%emt 0:00:41] [#]} d5 $146 {[%emt 0:01:06]} ({Predecessor:} 12... Bd5 13. Bg5 h6 14. e4 Nxe4 15. Qxg7 Nxg5 16. Qxh8+ Ke7 17. Qxh6 Nxf3+ 18. Bxf3 Bxf3 {1-0 Mendoza Navas,P (2070)-Garcia Munoz,J (2145) Malaga-ch 1995 (8)}) 13. b3 {[%emt 0:01:15]} Qa5 $36 {[%emt 0:03:21][%mdl 2048] Black has the initiative.} 14. Qc2 {[%emt 0:07:08]} Nd6 {[%emt 0:00:32]} 15. Bd2 {[%emt 0:10:05]} (15. b4 $11 cxb4 16. Bf4) 15... Qb6 $17 {[%emt 0:02:46]} 16. Ne5 {[%emt 0:04:16]} Rc8 {[%emt 0:05:45]} ({Better is} 16... O-O $17 17. Rab1 Rfc8) 17. a4 {[%emt 0:04:11]} (17. b4 $15) 17... Nf5 {[%emt 0:05:33] Strongly threatening ...Nd4.} 18. e3 {[%emt 0:04:12] Wards off Nd4} h6 {[%emt 0:03:17]} 19. Rfc1 {[%emt 0:03:57]} O-O {[%emt 0:02:36]} 20. a5 {[%emt 0:03:04]} Qd6 {[%emt 0:02:25]} 21. Nd3 {[%emt 0:01:44][%cal Rd3c5]} Nd7 {[%emt 0:01:47]} 22. Nf4 {[%emt 0:08:11]} Ne7 {[%emt 0:02:59]} 23. Qb2 {[%emt 0:06:56]} e5 {[%emt 0:01:58]} 24. a6 {[%emt 0:03:29]} Bc6 {[%emt 0:10:04]} ({Stronger than} 24... Bxa6 25. Nxd5 Nxd5 26. Bxd5 $15) 25. Ne2 {[%emt 0:00:41]} (25. Nd3 {was called for.}) 25... d4 $19 {[%emt 0:02:55]} 26. Bxc6 {[%emt 0:04:42]} Nxc6 {[%emt 0:02:56]} (26... Rxc6 $2 {too greedy.} 27. Qa3 $19) 27. Qa3 {[%emt 0:06:51]} Qd5 {[%emt 0:04:35]} 28. exd4 {[%emt 0:05:30]} cxd4 {[%emt 0:01:38]} 29. Rc4 {[%emt 0:02:21]} (29. b4 $142) 29... Qf3 {[%emt 0:03:10]} 30. Re1 {[%emt 0:01:39]} Nf6 {[%emt 0:03:34][%cal Bd7f6,Bf6e4,Be4d2][%mdl 32] Threatens to win with ...Ne4.} 31. Nc1 {[%emt 0:01:40]} Ne4 {[%emt 0:05:25]} 32. Re2 {[%emt 0:00:27]} Nxd2 {[%emt 0:01:17][%mdl 64] [#] Deflection} 33. Rxd2 {[%emt 0:00:03]} e4 {[%emt 0:00:30]} 34. Qb2 {[%emt 0:01:53]} e3 {[%emt 0:01:30]} 35. Re2 {[%emt 0:00:36]} Ne5 {[%emt 0:00:59]} 36. Rxc8 {[%emt 0:02:53]} Rxc8 {[%emt 0:00:05]} 37. Re1 {[%emt 0:00:34] White is weak on the dark squares} exf2+ {[%emt 0:00:59]} (37... Qe4 $142 38. fxe3 Nf3+ 39. Kf1 Nxe1 40. Kxe1 Qxe3+ 41. Kd1 d3 42. Nxd3 Qxd3+ 43. Qd2 Qf1+ 44. Qe1 Rd8+ {[%mdl 64] Deflection} 45. Kc2 Qxe1 46. Kb2 Rd1 47. b4 Qxb4+ 48. Kc2 Rd2+ 49. Kc1 Qb2#) 38. Qxf2 {[%emt 0:00:08] [#]} Rxc1 $1 {[%emt 0:00:37][%mdl 512] Weighted Error Value: White=0.87/Black=0.31} 0-1

[Event "European Women-ch 2023"]
[Site "Petrovac"]
[Date "2023.03.20"]
[Round "3.27"]
[White "Eric, Jovana"]
[Black "Skvortsova, Alena"]
[Result "0-1"]
[ECO "B33"]
[WhiteElo "2230"]
[BlackElo "2032"]
[Annotator "TA"]
[PlyCount "100"]
[EventDate "2023.03.15"]
[EventType "swiss"]
[EventCountry "MNE"]
[SourceTitle "playchess.com"]
[Source "ChessBase"]
[SourceQuality "1"]
[TimeControl "40/5400+30:1800+30"]

{[%evp 25,100,0,6,0,18,-27,14,13,32,27,57,29,51,-51,3,7,5,7,36,42,57,48,46,0,0,-19,-25,-165,-156,-184,-162,-479,-470,-382,-227,-292,-225,-312,-290,-568,-580,-696,-735,-670,-646,-646,-591,-1205,-1188,-850,-851,-428,-445,-5389,-5381,-29970,-29971,-29972,-29972,-29986,-29975,-29975,-29975,-29975,-29976,-29977,-29977,-29978,-29979,-29979,-29979,-29978,-29979,-29979,-29980,-29979,-29981]} 1. e4 {[%emt 0:00:03]} c5 {[%emt 0:00:05]} 2. Nf3 {[%emt 0:00:10]} Nc6 {[%emt 0:00:05]} 3. d4 {[%emt 0:00:16]} cxd4 {[%emt 0:00:07]} 4. Nxd4 {[%emt 0:00:06]} Nf6 {[%emt 0:00:07]} 5. Nc3 {[%emt 0:00:07]} e5 {[%emt 0:00:06]} 6. Ndb5 {[%emt 0:00:07]} d6 {[%emt 0:00:06]} 7. Nd5 {[%emt 0:00:21]} Nxd5 {[%emt 0:00:08]} 8. exd5 {[%emt 0:00:05]} Nb8 {[%emt 0:00:52]} 9. c4 {[%emt 0:00:20]} Be7 {[%emt 0:03:24]} 10. Be2 {[%emt 0:01:45]} O-O {[%emt 0:01:15][%cal Bh8f8,Bf8f6,Bf6h6][%mdl 32]} 11. O-O {[%emt 0:00:31]} a6 {[%emt 0:01:09]} 12. Nc3 {[%emt 0:00:19]} Nd7 {[%emt 0:00:57]} 13. a3 {[%emt 0:01:58]} f5 {[%emt 0:08:11][%cal Bf7f5,Bf5f4][%mdl 32]} 14. Kh1 {[%emt 0:03:16] [#] B33: Sicilian: Pelikan and Sveshnikov Variations.} f4 $146 {[%emt 0:08:42]} ({Predecessor:} 14... Qe8 15. f4 e4 16. Be3 Qg6 17. b4 Nf6 18. c5 Bd7 19. Na4 Bxa4 20. Qxa4 Kh8 {1-0 Aliavdin,N (2343)-Welna,L (1854) Szczecin Stoczni Nowa Cup 2008 (8.1)}) 15. f3 {[%emt 0:05:29]} Rf6 {[%emt 0:10:09]} (15... Bh4 $5 {[%cal Rh4g3]}) 16. Ne4 {[%emt 0:07:23] The position is equal.} Rh6 {[%emt 0:05:53]} 17. g3 {[%emt 0:01:28] Dodges Bh4} Bg5 {[%emt 0:11:05]} 18. Rg1 {[%emt 0:20:55] Rg2 is the strong threat.} (18. Rf2 $5 {[%cal Rf2g2]}) 18... Nc5 {[%emt 0:11:26]} 19. gxf4 {[%emt 0:19:25]} ({Better is} 19. Nxc5 $1 $14 dxc5 20. Bd3) 19... Bxf4 {[%emt 0:04:39]} (19... Nxe4 $15 20. fxe4 Bxf4 21. Bxf4 exf4) 20. Bxf4 $11 {[%emt 0:01:25]} exf4 $40 {[%emt 0:00:09][%mdl 128] Black has some attack.} 21. Nf2 $1 {[%emt 0:05:39]} (21. Qd4 Rxh2+ 22. Kxh2 Qh4+ 23. Kg2 Bh3+ 24. Kh2 Bf1#) 21... Qh4 {[%emt 0:09:58][%csl Gh6][%cal Rh4h2]} 22. Rg2 {[%emt 0:00:07]} Bf5 {[%emt 0:01:15]} 23. b4 $1 {[%emt 0:03:31]} Nd7 {[%emt 0:00:24]} 24. Rc1 {[%emt 0:06:48]} (24. Bd3 $14 Bh3 25. Nxh3 Qxh3 26. c5) 24... b6 {[%emt 0:08:16]} 25. Qd4 {[%emt 0:00:54][%csl Gg2][%cal Rd4g7]} (25. Bd3 $5 {[%cal Rd3f5]} Bh3 26. Nxh3 Qxh3 27. Qe2 $11) 25... Rg6 {[%emt 0:00:28]} 26. Rxg6 {[%emt 0:02:27] This costs White the game.} (26. Bd3 $11 Rxg2 27. Kxg2 Bxd3 28. Nxd3) 26... hxg6 $19 {[%emt 0:00:15]} 27. Ne4 {[%emt 0:02:57] [#]} Re8 $1 {[%emt 0:02:15]} 28. Rg1 $2 {[%emt 0:06:23]} (28. Ng3 {is a better chance.}) 28... Bxe4 {[%emt 0:03:09]} 29. fxe4 {[%emt 0:00:05]} Ne5 {[%emt 0:00:06]} (29... Nf6 $142 30. Bf3 g5) 30. Qd1 {[%emt 0:01:42] White is weak on the dark squares} Qh3 {[%emt 0:02:26] And now ...Qe3 would win.} 31. Bg4 {[%emt 0:02:38]} Qe3 {[%emt 0:01:49]} (31... Qxa3 32. Be6+ Kf8 33. Rf1 $19) 32. Be6+ $2 {[%emt 0:04:31] [#]} (32. Qe2 Nxg4 33. Qxg4 Qxe4+ 34. Qg2 Qxc4 35. Qxg6 Qxd5+ 36. Qg2) 32... Rxe6 $1 {[%emt 0:02:43][%mdl 512]} 33. dxe6 {[%emt 0:00:25]} (33. Re1 Qf3+) 33... Qxe4+ {[%emt 0:00:13][%mdl 4096] Endgame KQR-KQN} (33... Nxc4 34. Re1 (34. Rxg6 $2 Qxe4+ 35. Rg2 Qxg2+ {[%mdl 64] Decoy} 36. Kxg2 Ne3+ 37. Kh3 Nxd1 $19) 34... Qc3 35. Rg1 $14) 34. Rg2 {[%emt 0:00:04] [#]} f3 $1 {[%emt 0:00:50]} (34... Qxc4 35. Qxd6 Qf1+ 36. Rg1 Qf3+ 37. Rg2 $11) (34... Nxc4 35. Qc2 Qxe6 36. Qxg6 $11) 35. Rf2 {[%emt 0:00:11]} Nd3 {[%emt 0:01:14]} (35... Nxc4 36. e7 (36. Qxf3 Qxe6 37. a4 Ne5 $11) (36. Rxf3 $2 Ne3 $19) 36... Qxe7 37. Qd5+ (37. Rxf3 Qe6 $11) 37... Qf7 38. Qxf7+ (38. Qxf3 Qe6 $11) 38... Kxf7 39. Rxf3+ Ke6 40. Kg2 $16) 36. Qd2 {[%emt 0:02:30]} Nxf2+ {[%emt 0:00:21]} 37. Qxf2 {[%emt 0:00:05] KQ-KQ} g5 {[%emt 0:01:48]} (37... Qxc4 38. Qxf3 Qxe6 39. Qa8+ Kh7 40. Qxa6 $17) 38. h3 {[%emt 0:00:32]} g4 {[%emt 0:00:33] ( -> ...g3)} (38... Qxe6 39. Qxf3 Qxc4 40. Kg2 $17) 39. hxg4 {[%emt 0:00:48]} (39. Kh2 $142 Qf4+ 40. Qg3 Qd2+ 41. Kg1 Qd1+ 42. Kh2 Qe2+ 43. Kg1 gxh3 44. e7) 39... Qxg4 {[%emt 0:00:10]} (39... Qxe6 40. Qxf3 Qxc4 41. Kh2 $17) 40. a4 {[%emt 0:00:00]} a5 {[%emt 0:00:00] Black mates.} ({Stronger than} 40... Qxe6 41. Qxf3 Qxc4 42. Qe3 $19) 41. bxa5 {[%emt 0:15:14]} bxa5 {[%emt 0:01:48]} ({Not} 41... Qxe6 42. axb6 Qe2 43. Kg1 Qxc4 44. Kh2 $11 (44. Qxf3 Qc5+ 45. Qf2 Qc1+ 46. Kh2 Qh6+ 47. Kg3 Qg5+ 48. Kf3 Qf5+ 49. Ke3 Qc5+ 50. Ke2 Qc2+ 51. Kf1 Qc1+ 52. Qe1 Qf4+ 53. Kg2 Qg4+ 54. Qg3 Qe2+ 55. Qf2 Qg4+ 56. Kh1 Qe4+ 57. Qg2 Qh4+ 58. Kg1 Qd4+ 59. Qf2 Qg4+ 60. Qg2 Qd4+ 61. Qf2 Qg4+ 62. Qg2 Qd4+ $11)) 42. Qb2 {[%emt 0:02:03]} Qg2+ {[%emt 0:01:25]} 43. Qxg2 {[%emt 0:00:06]} fxg2+ {[%emt 0:00:02]} 44. Kxg2 {[%emt 0:00:06] K3P-K3P} Kf8 {[%emt 0:00:02]} 45. Kf3 {[%emt 0:02:07]} Ke7 {[%emt 0:00:05]} 46. Ke4 {[%emt 0:00:17]} Kxe6 {[%emt 0:00:06]} 47. Kd4 {[%emt 0:00:09]} g5 {[%emt 0:01:32]} 48. Ke4 {[%emt 0:00:20]} g4 {[%emt 0:00:15]} 49. Kf4 {[%emt 0:00:04] [#]} g3 $1 {[%emt 0:00:03][%mdl 576] Deflection} 50. Kxg3 {[%emt 0:00:05]} Ke5 {[%emt 0:00:03] Weighted Error Value: White=0.84/Black=0.13 (very precise)} 0-1

[Event "European Women-ch 2023"]
[Site "Petrovac"]
[Date "2023.03.20"]
[Round "3.28"]
[White "Kobak, Polina"]
[Black "Mamedjarova, Turkan"]
[Result "1-0"]
[ECO "A84"]
[WhiteElo "1815"]
[BlackElo "2229"]
[Annotator "TA"]
[PlyCount "83"]
[EventDate "2023.03.15"]
[EventType "swiss"]
[EventCountry "MNE"]
[SourceTitle "playchess.com"]
[Source "ChessBase"]
[SourceQuality "1"]
[TimeControl "40/5400+30:1800+30"]

{[%evp 12,83,64,68,89,58,70,73,86,89,93,85,120,73,77,35,80,75,76,79,64,64,96,58,98,57,72,70,82,77,70,72,78,73,80,93,85,91,133,124,146,140,193,198,239,234,251,195,193,193,177,195,325,209,206,205,281,253,259,252,338,176,492,475,561,555,480,354,958,929,1214,1204,1093,1054]} 1. d4 {[%emt 0:00:03]} d5 {[%emt 0:00:38]} 2. c4 {[%emt 0:00:07]} e6 {[%emt 0:00:03]} 3. Nf3 {[%emt 0:00:11]} f5 {[%emt 0:00:16]} 4. Bf4 {[%emt 0:01:47]} Nf6 {[%emt 0:00:20]} 5. Nc3 {[%emt 0:03:28]} c6 {[%emt 0:02:31]} 6. e3 {[%emt 0:02:43]} Bd6 {[%emt 0:00:57]} 7. Bd3 {[%emt 0:00:35]} Qc7 {[%emt 0:10:24] A84: Dutch Defence: 2 c4 Miscellaneous.} 8. Qc1 {[%emt 0:14:24]} O-O {[%emt 0:05:49]} 9. O-O {[%emt 0:06:42]} Qe7 {[%emt 0:07:31] [#] White is better.} 10. c5 $146 {[%emt 0:04:25]} ({Predecessor:} 10. Qc2 Ne4 11. Bxe4 fxe4 12. Ne5 Nd7 13. Nxd7 Bxd7 14. Bxd6 Qxd6 15. Qe2 Rf6 16. f4 exf3 17. gxf3 {0-1 Krivousas,T (2161)-Beinoras,M (2095) Plunge op Plateliai 2001}) 10... Bc7 {[%emt 0:15:44]} 11. b4 {[%emt 0:00:14]} Ng4 {[%emt 0:02:07] [#]} 12. Ne2 {[%emt 0:06:37]} (12. Qb2 $142 $1) 12... e5 $16 {[%emt 0:03:48]} 13. dxe5 {[%emt 0:00:49] Qb2 would be deadly.} Nxe5 {[%emt 0:00:49]} 14. Nxe5 {[%emt 0:00:20]} Bxe5 {[%emt 0:00:08]} 15. Bxe5 {[%emt 0:00:17]} Qxe5 {[%emt 0:00:02]} 16. Nd4 {[%emt 0:06:16]} Bd7 {[%emt 0:05:25]} 17. Qc2 {[%emt 0:02:53]} Rf6 {[%emt 0:11:46]} 18. Nf3 {[%emt 0:11:14]} Qe7 {[%emt 0:04:13]} 19. a4 {[%emt 0:05:46]} Be6 {[%emt 0:04:25]} 20. Nd4 {[%emt 0:03:52]} g6 {[%emt 0:00:08]} 21. b5 {[%emt 0:09:39] White is much more active.} Nd7 {[%emt 0:00:23]} 22. bxc6 {[%emt 0:00:56]} bxc6 {[%emt 0:01:42]} 23. Nxc6 {[%emt 0:02:24][%cal Bd4c6,Bc6a7,Ba7b5][%mdl 32]} Qxc5 {[%emt 0:00:18]} 24. Rfc1 {[%emt 0:00:25]} Qd6 {[%emt 0:02:20]} 25. Qc3 {[%emt 0:03:14]} Bf7 {[%emt 0:11:10]} 26. Qd4 {[%emt 0:02:16]} f4 {[%emt 0:03:01]} (26... a5 $16 27. Rab1 Re6) 27. Nxa7 $18 {[%emt 0:04:24]} fxe3 {[%emt 0:01:42]} 28. fxe3 {[%emt 0:00:05]} Ne5 {[%emt 0:00:59]} 29. Nb5 {[%emt 0:00:29]} Qe7 {[%emt 0:01:16]} 30. Rc7 {[%emt 0:03:20] Prevents Nc4.} Qe6 {[%emt 0:00:30]} 31. Be2 {[%emt 0:01:01]} Rf8 {[%emt 0:01:13]} (31... Qf5 $2 32. Rf1 (32. Qh4 g5 $18) 32... Qg5 33. Rf4 $18) (31... Rd8 {was necessary.} 32. Rd1 (32. Qh4 Nc4 $16) 32... h6) 32. Rcc1 {[%emt 0:01:11]} ({Not} 32. Qh4 Nc4 $14) 32... Nc6 {[%emt 0:01:47] [#]} (32... Qf5 $2 33. Rf1 Qg5 34. Rxf6 Qxf6 35. a5 $18 (35. Rf1 Qe7 $18)) 33. Qc3 {[%emt 0:00:45]} g5 {[%emt 0:01:38]} (33... Qf5 $2 34. Rf1 d4 35. Rxf5 $18) 34. Nd4 {[%emt 0:00:56]} Nxd4 {[%emt 0:00:24]} 35. Qxd4 {[%emt 0:00:05] Strongly threatening a5.} Bg6 {[%emt 0:01:31]} (35... Qf5 $2 36. Rf1 $18) 36. Rf1 {[%emt 0:00:47]} (36. a5 $142) 36... Bf5 $2 {[%emt 0:00:13]} (36... Rxf1+ 37. Bxf1 (37. Rxf1 Re8 $16) 37... Qf5) 37. a5 {[%emt 0:01:06][%cal Ba4a5,Ba5a6][%mdl 32] And now a6 would win.} R6f7 {[%emt 0:01:21]} 38. a6 Ra8 {[%emt 0:00:00]} 39. Bf3 {[%emt 0:02:30] Inhibits Qe4.} Rd7 {[%emt 0:00:03]} (39... Be4 40. a7 Bxf3 41. gxf3 Qf5) 40. Rfd1 {[%emt 0:00:00] White is clearly winning.} Rxa6 {[%emt 0:00:00]} 41. Rxa6 {[%emt 0:06:06]} (41. Bxd5 $2 {too greedy.} Rxd5 42. Qxd5 Qxd5 43. Rxd5 Rxa1+ $19) 41... Qxa6 {[%emt 0:01:10]} 42. Bxd5+ {[%emt 0:02:45] Weighted Error Value: White=0.26 (precise) /Black=0.46} 1-0